bitfinex/quotes_ETHUSD_20250413
["timestamp","ask_amount","ask_price","bid_price","bid_amount"]
[1744570444223,6.13457,1630.2,1629.9,0.55]
[1744570444713,12.26901,1630.2,1629.9,0.55]
[1744570444872,6.13459,1630.1,1629.9,0.55]
[1744570445382,6.13425,1630.2,1629.9,0.55]
[1744570445894,6.13461,1630.1,1629.9,1.22470458]
[1744570446198,6.13425,1630.2,1629.9,0.55]
[1744570446514,6.13425,1630.2,1629.9,6.68532]
[1744570446892,12.26878,1630.2,1629.9,0.55]
[1744570447514,6.1347,1630.1,1629.9,0.55]
[1744570448293,6.1347,1630.1,1629.9,6.71]
[1744570449021,6.13496,1630.0,1629.9,6.16]
[1744570450420,6.13476,1630.1,1629.9,6.16]
[1744570450577,6.13551,1629.9,1629.7,6.71]
[1744570450778,6.13551,1629.9,1629.7,6.16]
[1744570451127,0.7653,1630.1,1629.4,6.16]
[1744570451128,6.13685,1629.5,1629.4,6.16]
[1744570451276,6.13722,1629.4,1629.3,6.16]
[1744570451680,12.27311,1629.6,1629.3,6.16]
[1744570451923,6.13651,1629.6,1629.3,6.16]
[1744570452123,12.27328,1629.6,1629.3,6.16]
[1744570452335,6.13685,1629.5,1629.3,6.16]
[1744570452485,12.27394,1629.5,1629.3,6.16]
[1744570453259,6.13685,1629.5,1629.3,6.16]
[1744570453455,6.13659,1629.6,1629.3,6.16]
[1744570453640,6.13631,1629.7,1629.4,1.2209]
[1744570453811,6.13631,1629.7,1629.4,13.51796]
[1744570454016,6.13579,1629.8,1629.5,6.77136463]
[1744570454434,6.13579,1629.8,1629.5,12.90811463]
[1744570454640,6.13579,1629.8,1629.5,12.84675]
[1744570455020,12.27103,1629.9,1629.5,21.003881]
[1744570455339,12.27103,1629.9,1629.5,14.867131]
[1744570455646,6.13577,1629.8,1629.5,14.867131]
[1744570457247,12.27008,1630.0,1629.7,0.55]
[1744570458447,6.13499,1630.0,1629.7,0.55]
[1744570458610,6.13499,1630.0,1629.7,0.61135424]
[1744570458815,12.27016,1630.0,1629.7,0.61135424]
[1744570459016,6.13539,1629.9,1629.7,0.55]
[1744570460614,12.2703,1630.0,1629.7,0.61135425]
[1744570460815,12.27014,1630.0,1629.7,0.61135425]
[1744570461113,12.27014,1630.0,1629.7,2.57624468]
[1744570461114,6.13499,1630.0,1629.7,2.57624468]
[1744570461657,0.7958,1630.3,1629.9,6.13513]
[1744570461658,6.92995,1630.3,1629.9,6.13513]
[1744570461944,6.15349,1630.4,1630.2,0.55]
[1744570462151,0.02,1630.4,1630.2,0.55]
[1744570462348,0.02,1630.4,1630.2,5.28978182]
[1744570462556,0.02,1630.4,1630.3,1.68387818]
[1744570462848,6.15346,1630.4,1630.3,0.55]
[1744570463619,6.13384,1630.3,1630.2,0.55]
[1744570464244,6.15353,1630.4,1630.1,6.16]
[1744570464422,6.15353,1630.4,1630.1,6.22133822]
[1744570464822,6.13389,1630.3,1630.1,6.16]
[1744570465049,6.13421,1630.2,1630.1,6.71]
[1744570465563,12.28712,1630.4,1630.1,6.71]
[1744570465851,0.02,1630.4,1630.1,6.16]
[1744570466151,6.13384,1630.3,1630.1,6.16]
[1744570468354,12.26786,1630.3,1630.1,6.16]
[1744570469572,6.13421,1630.2,1630.0,6.16]
[1744570470858,6.13459,1630.1,1630.0,6.16]
[1744570471450,7.14477471,1630.1,1630.0,6.16]
[1744570472060,6.13459,1630.1,1630.0,6.16]
[1744570480464,13.07516,1630.2,1630.0,6.16]
[1744570481162,6.13459,1630.1,1630.0,6.16]
[1744570483860,6.93989,1630.1,1630.0,6.16]
[1744570484062,6.93989,1630.1,1629.6,0.55]
[1744570484063,6.13572,1629.8,1629.7,6.16]
[1744570484368,6.94102,1629.8,1629.7,6.16]
[1744570486071,8.248674,1629.8,1629.7,6.16]
[1744570486771,6.13552,1629.9,1629.7,6.16]
[1744570488673,6.94034,1630.0,1629.7,6.16]
[1744570488840,6.13463,1630.1,1629.8,10.9642496]
[1744570489036,9.93958,1630.2,1629.9,12.35667891]
[1744570489037,6.13428,1630.2,1629.9,12.35667891]
[1744570489547,12.26869,1630.2,1629.9,12.35667891]
[1744570491072,12.26869,1630.2,1629.9,6.22134891]
[1744570491570,12.26869,1630.2,1629.9,6.16]
[1744570491762,12.2696,1630.1,1629.9,6.16]
[1744570492163,6.13466,1630.1,1629.9,6.16]
[1744570494477,6.13466,1630.1,1629.9,7.25886896]
[1744570497080,6.13429,1630.2,1629.9,13.45550565]
[1744570497242,6.13429,1630.2,1629.9,13.39415896]
[1744570497973,12.26869,1630.2,1629.9,13.39415896]
[1744570498173,12.26869,1630.2,1629.9,7.25886896]
[1744570499679,6.13429,1630.2,1629.9,13.45554566]
[1744570499985,14.53206658,1630.4,1629.9,7.25886896]
[1744570500159,6.13471,1630.1,1629.9,6.16]
[1744570500548,12.26954,1630.1,1629.9,6.16]
[1744570500845,6.13496,1630.0,1629.9,6.16]
[1744570502784,6.93179,1629.7,1629.6,6.16]
[1744570503583,6.13685,1629.5,1629.3,6.16]
[1744570503885,6.13722,1629.4,1629.3,6.16]
[1744570504069,7.106,1629.6,1629.3,10.4386896]
[1744570504383,7.106,1629.6,1629.4,0.55]
[1744570504581,7.106,1629.6,1629.4,2.26259796]
[1744570504762,6.13574,1629.8,1629.5,6.13685]
[1744570505085,6.95272,1630.1,1629.7,4.8835896]
[1744570505270,12.2703,1630.0,1629.7,4.8835896]
[1744570505583,6.13511,1630.0,1629.8,6.16]
[1744570505760,12.27028,1630.0,1629.8,6.16]
[1744570506384,6.13534,1629.9,1629.8,6.16]
[1744570508791,6.13705,1629.5,1629.3,11.0435896]
[1744570508952,6.13705,1629.5,1629.3,6.7649]
[1744570509149,6.13722,1629.4,1629.3,6.16]
[1744570509966,6.13701,1629.5,1629.3,6.16]
[1744570510166,12.27409,1629.5,1629.3,6.16]
[1744570510389,6.13722,1629.4,1629.3,6.16]
[1744570511983,6.95522,1629.4,1629.3,6.16]
[1744570512889,6.13798,1629.2,1629.1,6.16]
[1744570513263,6.95411,1629.7,1629.4,6.13717]
[1744570513456,13.24288,1629.8,1629.4,10.4157696]
[1744570513689,13.24288,1629.8,1629.5,6.13684]
[1744570513889,58.76604,1630.0,1629.6,10.4149196]
[1744570514081,64.90127,1630.0,1629.6,25.11042326]
[1744570514391,20.19439,1630.1,1629.7,12.82187]
[1744570514991,14.05966,1630.1,1629.7,12.88322297]
[1744570515190,14.05966,1630.1,1629.7,12.82187]
[1744570515695,14.05966,1630.1,1629.7,12.88322284]
[1744570515893,6.13541,1629.9,1629.7,0.55]
[1744570516095,6.13572,1629.8,1629.7,0.55]
[1744570516290,7.925,1630.1,1629.7,0.55]
[1744570516483,13.24175,1630.1,1629.8,0.6049]
[1744570517195,7.107,1630.1,1629.8,0.6049]
[1744570517494,6.13534,1629.9,1629.7,0.90477964]
[1744570518398,6.1353,1630.0,1629.7,0.90477964]
[1744570518696,6.1353,1630.0,1629.8,6.16]
[1744570519091,12.27051,1630.0,1629.8,6.16]
[1744570519397,6.13534,1629.9,1629.8,6.16]
[1744570520386,6.13521,1630.0,1629.8,6.16]
[1744570520698,6.13521,1630.0,1629.8,7.48008296]
[1744570521395,6.13534,1629.9,1629.8,6.16]
[1744570521966,6.95313,1630.0,1629.8,6.16]
[1744570522367,13.08828,1630.0,1629.8,6.16]
[1744570523399,6.95313,1630.0,1629.8,6.16]
[1744570523602,6.13513,1630.0,1629.8,6.16]
[1744570523769,6.13513,1630.0,1629.8,6.83649]
[1744570524301,6.13534,1629.9,1629.8,6.16]
[1744570524799,6.13534,1629.9,1629.4,6.16]
[1744570524800,6.1368,1629.6,1629.4,6.16]
[1744570525000,6.13685,1629.5,1629.4,6.16]
[1744570527596,6.1376,1629.3,1629.2,6.16]
[1744570529011,6.1369,1629.5,1629.2,7.326]
[1744570529194,6.13722,1629.4,1629.3,0.6049]
[1744570530278,6.1369,1629.5,1629.3,0.6049]
[1744570530478,0.7593,1629.6,1629.3,0.6049]
[1744570530479,6.13668,1629.6,1629.3,0.6049]
[1744570530705,12.27336,1629.6,1629.3,8.15535119]
[1744570531005,12.2742,1629.5,1629.3,2.01791119]
[1744570531873,12.2742,1629.5,1629.3,0.6049]
[1744570533108,12.2742,1629.5,1629.2,7.326]
[1744570533109,6.13722,1629.4,1629.2,6.71]
[1744570533314,6.13798,1629.2,1629.1,6.16]
[1744570536287,6.96648,1629.2,1629.1,6.16]
[1744570536487,8.276888,1629.2,1629.1,6.16]
[1744570536694,6.13798,1629.2,1629.1,6.16]
[1744570539238,6.13798,1629.2,1629.0,4.28306005]
[1744570539239,12.27631,1629.2,1629.0,4.28306005]
[1744570539381,6.13798,1629.2,1629.0,4.28306005]
[1744570539582,6.13764,1629.3,1629.0,4.88796005]
[1744570539787,12.27544,1629.3,1629.0,6.7230261]
[1744570539987,6.13801,1629.2,1629.0,6.7230261]
[1744570540296,6.13801,1629.2,1629.0,6.66164506]
[1744570541333,12.27617,1629.2,1629.0,6.66164506]
[1744570541510,6.13835,1629.1,1629.0,7.21164506]
[1744570542629,12.27538,1629.3,1629.0,7.21164506]
[1744570542799,12.27542,1629.3,1629.1,0.55]
[1744570543202,6.13798,1629.2,1629.1,0.55]
[1744570544735,6.13798,1629.2,1629.1,1.27116451]
[1744570545207,6.13798,1629.2,1629.1,6.16]
[1744570553538,6.13763,1629.3,1629.1,6.16]
[1744570553539,12.27541,1629.3,1629.1,6.16]
[1744570553912,6.13798,1629.2,1629.1,6.16]
[1744570558853,6.13693,1629.5,1629.2,0.55]
[1744570559019,6.13693,1629.5,1629.3,4.28306005]
[1744570559944,6.13693,1629.5,1629.3,5.99393505]
[1744570560911,6.13722,1629.4,1629.3,4.28306005]
[1744570561246,6.13776,1629.3,1629.1,11.04796005]
[1744570561618,6.13776,1629.3,1629.1,11.10933721]
[1744570562751,6.1373,1629.4,1629.1,11.10933721]
[1744570562919,6.1373,1629.4,1629.1,17.24743721]
[1744570563121,6.1373,1629.4,1629.1,19.57967277]
[1744570563323,6.13761,1629.3,1629.1,13.44157277]
[1744570563947,12.2754,1629.3,1629.1,13.44157277]
[1744570564129,6.13761,1629.3,1629.1,13.44157277]
[1744570565757,12.27464,1629.4,1629.1,13.44157277]
[1744570566058,6.13724,1629.4,1629.1,19.57992277]
[1744570566260,12.27464,1629.4,1629.1,13.44157277]
[1744570566458,6.13763,1629.3,1629.1,13.44157277]
[1744570566960,6.13724,1629.4,1629.1,19.57990277]
[1744570567129,12.27464,1629.4,1629.1,19.57990277]
[1744570567959,12.27464,1629.4,1629.1,13.44157277]
[1744570568752,6.13707,1629.5,1629.1,10.44306005]
[1744570569759,6.13746,1629.4,1629.1,10.44306005]
[1744570569961,6.13763,1629.3,1629.1,10.44306005]
[1744570570162,6.13763,1629.3,1629.1,12.21672306]
[1744570570730,12.27544,1629.3,1629.1,12.21672306]
[1744570570935,6.13798,1629.2,1629.1,6.71]
[1744570572368,6.13763,1629.3,1629.1,6.71]
[1744570572945,12.27541,1629.3,1629.1,6.71]
[1744570573249,6.13763,1629.3,1629.1,6.71]
[1744570573445,12.27541,1629.3,1629.1,6.71]
[1744570573852,6.13763,1629.3,1629.1,6.71]
[1744570574253,6.13763,1629.3,1629.1,8.055361]
[1744570574667,6.13763,1629.3,1629.1,12.33842105]
[1744570575273,0.7854,1629.6,1629.2,1.1549]
[1744570575437,6.13546,1629.9,1629.6,0.6049]
[1744570575638,6.13546,1629.9,1629.7,6.16]
[1744570575833,6.13572,1629.8,1629.7,6.16]
[1744570577878,6.13647,1629.6,1629.5,6.16]
[1744570578780,6.13647,1629.6,1629.5,6.15357929]
[1744570579174,6.95657,1629.6,1629.5,6.15357929]
[1744570579679,6.13798,1629.2,1629.1,6.15357929]
[1744570579874,6.13798,1629.2,1629.0,6.15357929]
[1744570579875,12.27615,1629.2,1629.0,6.15357929]
[1744570580078,6.13798,1629.2,1629.0,6.15357929]
[1744570581281,12.27615,1629.2,1629.0,6.15357929]
[1744570581482,6.13835,1629.1,1629.0,6.15357929]
[1744570584875,6.13798,1629.2,1629.0,6.75847929]
[1744570585153,6.13798,1629.2,1629.1,4.28306005]
[1744570589091,6.13798,1629.2,1629.1,10.43663934]
[1744570590162,0.7528,1629.5,1629.1,11.54079327]
[1744570590362,0.7528,1629.5,1629.3,4.88796005]
[1744570590363,6.13702,1629.5,1629.3,4.88796005]
[1744570590896,6.13651,1629.6,1629.4,6.70357929]
[1744570591058,6.13685,1629.5,1629.4,6.70357929]
[1744570591258,6.13616,1629.7,1629.4,7.86273322]
[1744570591473,12.27243,1629.7,1629.4,13.99992322]
[1744570591696,6.13616,1629.7,1629.5,4.28306005]
[1744570592595,12.27173,1629.8,1629.5,4.28306005]
[1744570592896,12.27093,1629.9,1629.6,7.30847929]
[1744570593096,6.1354,1629.9,1629.7,6.15357929]
[1744570593963,6.13572,1629.8,1629.7,6.15357929]
[1744570594774,12.27091,1629.9,1629.7,6.15357929]
[1744570595192,6.13572,1629.8,1629.7,6.15357929]
[1744570596563,6.95722,1629.8,1629.7,6.15357929]
[1744570596898,8.266482,1629.8,1629.7,6.15357929]
[1744570597875,6.13636,1629.7,1629.4,6.21494344]
[1744570598076,6.13636,1629.7,1629.4,6.15357929]
[1744570598868,6.13573,1629.8,1629.5,0.61136745]
[1744570599066,6.13616,1629.7,1629.5,4.83306005]
[1744570599991,12.27169,1629.8,1629.5,4.83306005]
[1744570600191,6.13611,1629.7,1629.5,7.15913898]
[1744570601598,6.13611,1629.7,1629.4,12.29063929]
[1744570601599,6.13647,1629.6,1629.4,6.15357929]
[1744570602300,6.13685,1629.5,1629.4,6.70357929]
[1744570603280,6.13685,1629.5,1629.4,6.15357929]
[1744570603481,6.13613,1629.7,1629.4,12.29057929]
[1744570603711,6.13613,1629.7,1629.5,6.76494071]
[1744570603904,6.13613,1629.7,1629.5,6.70357929]
[1744570604582,6.13647,1629.6,1629.5,6.70357929]
[1744570604778,6.13647,1629.6,1629.5,6.15357929]
[1744570604979,7.8835085,1629.6,1629.5,6.15357929]
[1744570605184,7.8835085,1629.6,1629.2,6.15357929]
[1744570605185,6.13756,1629.4,1629.2,6.15357929]
[1744570605784,6.1376,1629.3,1629.2,6.15357929]
[1744570609695,6.1374,1629.4,1629.2,6.15357929]
[1744570611619,6.13739,1629.4,1629.2,6.15357929]
[1744570612327,12.27478,1629.4,1629.2,6.15357929]
[1744570614526,6.13739,1629.4,1629.2,6.15357929]
[1744570618904,6.13611,1629.7,1629.5,0.55]
[1744570619635,6.13647,1629.6,1629.5,0.55]
[1744570619926,6.13611,1629.7,1629.5,0.55]
[1744570620138,6.13647,1629.6,1629.5,0.55]
[1744570620501,6.94921,1629.7,1629.5,0.55]
[1744570623302,2.121601,1629.7,1629.3,6.15357929]
[1744570623513,6.13709,1629.5,1629.3,6.15357929]
[1744570624331,6.13722,1629.4,1629.3,6.70357929]
[1744570625746,12.27428,1629.5,1629.3,6.70357929]
[1744570625946,6.13722,1629.4,1629.3,6.15357929]
[1744570627116,6.95032,1629.4,1629.3,6.15357929]
[1744570627446,8.259061,1629.4,1629.3,6.15357929]
[1744570628341,6.95032,1629.4,1629.3,6.15357929]
[1744570630053,13.08786,1629.4,1629.1,6.15357929]
[1744570631957,6.95032,1629.4,1629.1,6.15357929]
[1744570632123,13.08775,1629.4,1629.1,6.15357929]
[1744570632448,6.13762,1629.3,1629.1,6.15357929]
[1744570632618,12.27557,1629.3,1629.1,7.38279422]
[1744570632818,12.27557,1629.3,1629.1,6.15357929]
[1744570633019,6.13798,1629.2,1629.1,6.15357929]
[1744570634519,6.93008,1629.2,1629.1,6.15357929]
[1744570634719,6.13871,1629.1,1628.9,6.15357929]
[1744570635747,6.13873,1629.0,1628.9,6.15357929]
[1744570638550,7.366474,1629.0,1628.9,6.15357929]
[1744570639445,6.13873,1629.0,1628.9,6.15357929]
[1744570640464,6.91923,1629.0,1628.9,6.15357929]
[1744570640987,12.27724,1629.1,1628.9,6.15357929]
[1744570641340,6.13853,1629.1,1628.9,6.15357929]
[1744570641541,12.27712,1629.1,1628.9,6.15357929]
[1744570642164,6.13805,1629.2,1629.0,4.28306005]
[1744570642349,6.13769,1629.3,1629.0,4.28306005]
[1744570642554,0.7805,1629.4,1629.0,4.28306005]
[1744570642754,6.13815,1629.2,1629.0,4.28306005]
[1744570643185,12.27643,1629.2,1629.0,4.28306005]
[1744570643344,6.13835,1629.1,1629.0,4.83306005]
[1744570644478,6.13835,1629.1,1629.0,4.28306005]
[1744570644842,6.13835,1629.1,1629.0,6.15357929]
[1744570645049,6.95935,1629.1,1629.0,6.15357929]
[1744570646148,8.2691,1629.1,1629.0,6.15357929]
[1744570650651,6.13883,1629.0,1628.8,6.15357929]
[1744570651973,6.13835,1629.1,1628.9,4.28306005]
[1744570652507,6.13873,1629.0,1628.9,4.28306005]
[1744570652888,6.13873,1629.0,1628.8,10.43663934]
[1744570653052,6.13835,1629.1,1628.9,0.6049]
[1744570653383,12.27692,1629.1,1628.9,0.6049]
[1744570654010,6.13835,1629.1,1628.9,0.6049]
[1744570654154,12.27691,1629.1,1628.9,0.6049]
[1744570654570,6.92764,1629.3,1629.0,10.42166005]
[1744570654776,6.13774,1629.3,1629.0,10.48304814]
[1744570654978,0.7899,1629.5,1629.1,0.55]
[1744570655295,6.13783,1629.3,1629.1,0.55]
[1744570656403,12.27573,1629.3,1629.1,0.55]
[1744570657908,6.13825,1629.2,1629.0,10.43663934]
[1744570658200,6.13835,1629.1,1629.0,6.15357929]
[1744570658964,6.13825,1629.2,1629.0,6.15357929]
[1744570661229,12.27639,1629.2,1629.0,6.15357929]
[1744570661531,6.13835,1629.1,1629.0,6.15357929]
[1744570662096,6.13873,1629.0,1628.9,6.15357929]
[1744570662296,6.92863,1629.0,1628.9,6.15357929]
[1744570662501,6.13948,1628.8,1628.7,10.28653425]
[1744570664432,6.1388,1629.0,1628.8,0.6049]
[1744570665198,12.27774,1629.0,1628.8,0.6049]
[1744570665642,12.27774,1629.0,1628.7,15.1744943]
[1744570666027,12.27774,1629.0,1628.7,17.91996473]
[1744570666234,6.1388,1629.0,1628.7,24.05974473]
[1744570666397,6.1388,1629.0,1628.7,30.19946473]
[1744570666602,6.1388,1629.0,1628.7,26.06650977]
[1744570666903,6.13842,1629.1,1628.8,6.68937]
[1744570667102,6.13806,1629.2,1628.9,4.28306005]
[1744570667326,6.13806,1629.2,1628.9,10.42216005]
[1744570667498,12.27624,1629.2,1628.9,4.28306005]
[1744570667698,6.13873,1629.0,1628.8,0.55]
[1744570668232,6.13873,1629.0,1628.9,6.15357929]
[1744570670327,6.89103,1629.0,1628.9,6.15357929]
[1744570674045,13.03,1629.0,1628.8,6.15357929]
[1744570674746,6.13911,1628.9,1628.8,6.15357929]
[1744570674914,7.442124,1628.9,1628.8,6.15357929]
[1744570675458,6.13911,1628.9,1628.8,6.15357929]
[1744570676824,6.13873,1629.0,1628.8,6.15357929]
[1744570677835,12.27776,1629.0,1628.8,6.15357929]
[1744570678735,6.93201,1628.9,1628.8,6.15357929]
[1744570679962,0.7929,1628.9,1628.7,6.15357929]
[1744570680118,6.13929,1628.9,1628.7,6.15357929]
[1744570681068,12.27858,1628.9,1628.7,6.15357929]
[1744570682334,6.13929,1628.9,1628.7,6.15357929]
[1744570682734,13.03355,1629.0,1628.7,8.40115072]
[1744570683580,6.1388,1629.0,1628.8,0.55]
[1744570683783,6.89491,1628.9,1628.7,6.15357929]
[1744570683938,13.03427,1628.9,1628.7,6.15357929]
[1744570684139,6.89491,1628.9,1628.7,7.79624372]
[1744570684356,13.03421,1628.9,1628.7,7.79624372]
[1744570685370,6.13948,1628.8,1628.7,7.79624372]
[1744570685668,6.13986,1628.7,1628.6,10.28653425]
[1744570686070,6.13948,1628.8,1628.6,10.28653425]
[1744570687170,12.27917,1628.8,1628.6,10.28653425]
[1744570687369,6.13986,1628.7,1628.6,10.28653425]
[1744570689346,12.27914,1628.8,1628.6,10.28653425]
[1744570690276,6.13948,1628.8,1628.6,10.28653425]
[1744570690639,12.27925,1628.8,1628.6,10.28653425]
[1744570691650,6.13986,1628.7,1628.6,10.28653425]
[1744570691850,12.27918,1628.8,1628.6,10.28653425]
[1744570692149,6.13948,1628.8,1628.6,10.28653425]
[1744570692551,12.27914,1628.8,1628.6,10.28653425]
[1744570693084,6.13923,1628.9,1628.6,12.35755168]
[1744570693376,6.13923,1628.9,1628.7,4.88796005]
[1744570693776,13.91029,1629.1,1628.8,6.15357929]
[1744570693981,13.15449,1629.1,1628.8,6.15357929]
[1744570694278,6.13884,1629.0,1628.8,6.15357929]
[1744570694475,12.27774,1629.0,1628.8,7.87168722]
[1744570694778,6.13911,1628.9,1628.8,6.15357929]
[1744570694958,12.27773,1629.0,1628.8,6.15357929]
[1744570696042,6.13884,1629.0,1628.8,6.15357929]
[1744570696247,6.13911,1628.9,1628.8,6.15357929]
[1744570696749,6.13884,1629.0,1628.8,6.15357929]
[1744570697679,12.27779,1629.0,1628.8,6.15357929]
[1744570697842,6.13911,1628.9,1628.8,6.15357929]
[1744570698248,6.89491,1628.9,1628.8,6.15357929]
[1744570698876,6.13911,1628.9,1628.8,6.15357929]
[1744570699096,6.13884,1629.0,1628.8,7.80214322]
[1744570700070,6.13911,1628.9,1628.8,6.15357929]
[1744570701182,6.13884,1629.0,1628.8,6.15357929]
[1744570701782,12.27775,1629.0,1628.8,6.15357929]
[1744570706487,6.13911,1628.9,1628.8,6.15357929]
[1744570708275,12.27775,1629.0,1628.8,6.15357929]
[1744570708866,6.13911,1628.9,1628.8,6.15357929]
[1744570709495,6.13911,1628.9,1628.7,6.15357929]
[1744570710793,6.13911,1628.9,1628.7,7.85673471]
[1744570711002,6.13884,1629.0,1628.7,14.05779951]
[1744570711165,6.13884,1629.0,1628.7,15.97361525]
[1744570711570,6.13884,1629.0,1628.7,22.11335525]
[1744570711800,6.90328,1629.3,1628.9,14.80513054]
[1744570712107,13.0411,1629.3,1629.0,1.48051305]
[1744570712305,6.13799,1629.2,1628.9,8.66617054]
[1744570713397,12.27623,1629.2,1628.9,8.66617054]
[1744570715102,12.27623,1629.2,1629.0,6.15357929]
[1744570715401,6.13799,1629.2,1629.0,6.15357929]
[1744570715606,13.04102,1629.3,1629.0,6.15357929]
[1744570716407,6.13801,1629.2,1629.0,6.15357929]
[1744570716610,6.13835,1629.1,1629.0,6.15357929]
[1744570718508,12.27634,1629.2,1629.0,6.15357929]
[1744570718709,6.13801,1629.2,1629.0,6.15357929]
[1744570719212,6.13801,1629.2,1629.0,7.63556727]
[1744570719509,12.27616,1629.2,1629.0,6.15357929]
[1744570720182,6.13835,1629.1,1629.0,6.15357929]
[1744570721412,6.89265,1629.1,1629.0,6.15357929]
[1744570721598,6.13873,1629.0,1628.9,6.15357929]
[1744570727319,8.196168,1629.0,1628.9,6.15357929]
[1744570732695,6.13948,1628.8,1628.7,6.15357929]
[1744570734822,12.27847,1628.9,1628.7,6.15357929]
[1744570736419,6.13948,1628.8,1628.7,6.15357929]
[1744570736620,6.13835,1629.1,1628.7,14.87527983]
[1744570736824,6.13874,1629.0,1628.8,1.48752798]
[1744570736988,12.27771,1629.0,1628.8,1.48752798]
[1744570737625,12.27854,1628.9,1628.7,6.15357929]
[1744570737830,6.13911,1628.9,1628.7,6.15357929]
[1744570738127,12.27846,1628.9,1628.7,6.15357929]
[1744570738626,12.27846,1628.9,1628.8,6.15357929]
[1744570739013,6.13911,1628.9,1628.8,6.15357929]
[1744570740526,6.13911,1628.9,1628.8,6.96665827]
[1744570744643,6.13911,1628.9,1628.8,6.15357929]
[1744570762049,6.13948,1628.8,1628.7,6.15357929]
[1744570765351,6.13948,1628.8,1628.7,8.13078983]
[1744570769272,6.13849,1629.1,1628.8,1.1549]
[1744570769416,0.766,1629.2,1628.8,1.1549]
[1744570769417,6.13809,1629.2,1629.0,1.97721054]
[1744570769622,0.766,1629.3,1629.0,15.08713734]
[1744570769926,6.13738,1629.4,1629.2,1.97721054]
[1744570770148,6.13738,1629.4,1629.2,8.13078983]
[1744570770551,12.27479,1629.4,1629.2,8.13078983]
[1744570771358,6.13738,1629.4,1629.2,8.13078983]
[1744570772200,12.27479,1629.4,1629.2,8.13078983]
[1744570773049,6.13738,1629.4,1629.2,9.00435881]
[1744570773237,13.03992,1629.5,1629.2,9.00435881]
[1744570773622,6.13693,1629.5,1629.2,15.20367243]
[1744570773825,6.13693,1629.5,1629.2,15.14229881]
[1744570774332,12.27399,1629.5,1629.2,9.00435881]
[1744570774519,12.27399,1629.5,1629.2,9.06573241]
[1744570775256,6.13723,1629.4,1629.2,9.00435881]
[1744570776450,6.13723,1629.4,1629.2,9.06573247]
[1744570777057,6.13693,1629.5,1629.2,9.06573247]
[1744570777058,12.2741,1629.5,1629.2,9.06573247]
[1744570777252,6.13724,1629.4,1629.2,9.06573247]
[1744570777427,6.13724,1629.4,1629.2,9.00435881]
[1744570777951,6.13693,1629.5,1629.3,0.90043588]
[1744570778346,12.27396,1629.5,1629.3,0.90043588]
[1744570778957,6.13722,1629.4,1629.3,0.90043588]
[1744570779726,6.13722,1629.4,1629.3,7.05401517]
[1744570782233,6.13722,1629.4,1629.3,6.15357929]
[1744570784481,6.90202,1629.4,1629.3,6.15357929]
[1744570785379,6.13722,1629.4,1629.3,6.15357929]
[1744570785684,6.13722,1629.4,1629.1,12.29192929]
[1744570785862,12.27466,1629.4,1629.1,6.15357929]
[1744570786063,12.27462,1629.4,1629.1,6.21495747]
[1744570786486,12.27462,1629.4,1629.1,6.15357929]
[1744570786856,12.27556,1629.3,1629.1,6.15357929]
[1744570788781,6.13798,1629.2,1629.1,6.15357929]
[1744570791884,12.27569,1629.3,1629.1,6.15357929]
[1744570792498,6.13798,1629.2,1629.1,6.15357929]
[1744570794387,6.90278,1629.2,1629.1,6.15357929]
[1744570796407,6.1386,1629.1,1628.9,6.15357929]
[1744570796604,12.2772,1629.1,1628.9,6.15357929]
[1744570798519,6.1386,1629.1,1628.9,6.15357929]
[1744570798712,12.27717,1629.1,1628.9,6.15357929]
[1744570799613,6.13857,1629.1,1628.9,6.15357929]
[1744570800224,12.27714,1629.1,1628.9,6.15357929]
[1744570800425,0.7648,1629.2,1629.0,6.13871]
[1744570800588,6.9369,1629.5,1629.1,8.66544054]
[1744570800922,6.1369,1629.5,1629.2,6.74284]
[1744570801122,6.1369,1629.5,1629.2,0.6049]
[1744570801324,6.13768,1629.3,1629.0,6.75847929]
[1744570801618,0.8,1629.4,1629.0,6.15357929]
[1744570801619,6.13811,1629.2,1629.0,6.15357929]
[1744570801916,6.93835,1629.1,1629.0,6.15357929]
[1744570806039,6.13911,1628.9,1628.8,6.15357929]
[1744570810250,6.13891,1629.0,1628.8,6.15357929]
[1744570810615,6.13911,1628.9,1628.8,6.15357929]
[1744570813336,6.13889,1629.0,1628.8,8.74614776]
[1744570813730,12.2778,1629.0,1628.8,8.74614776]
[1744570813924,12.2778,1629.0,1628.8,8.13078983]
[1744570814254,6.13911,1628.9,1628.8,8.13078983]
[1744570816149,0.7789,1629.3,1628.8,8.73568983]
[1744570816355,6.13895,1629.0,1628.9,6.15357929]
[1744570822932,6.91785,1629.0,1628.9,6.15357929]
[1744570823750,6.13853,1629.1,1628.9,6.75847929]
[1744570823939,3.0,1629.4,1629.1,0.6049]
[1744570823940,6.13772,1629.3,1629.1,0.6049]
[1744570824140,12.27549,1629.3,1629.1,0.6049]
[1744570826357,6.13798,1629.2,1629.1,0.6049]
[1744570826562,12.27705,1629.1,1628.9,0.55]
[1744570826759,12.27705,1629.1,1628.9,0.91821105]
[1744570827260,13.05505,1629.2,1628.9,0.91821105]
[1744570827681,6.13841,1629.1,1628.9,0.91821105]
[1744570827974,12.27704,1629.1,1628.9,0.91821105]
[1744570828170,6.13841,1629.1,1628.9,0.91821105]
[1744570828379,12.277,1629.1,1628.9,0.91821105]
[1744570828662,6.13841,1629.1,1628.9,0.91821105]
[1744570831265,12.27694,1629.1,1628.9,0.91821105]
[1744570831453,6.13841,1629.1,1628.9,0.91821105]
[1744570831763,12.27619,1629.2,1628.9,7.05731105]
[1744570832466,12.27619,1629.2,1629.1,6.16]
[1744570832667,13.582849,1629.2,1629.1,6.16]
[1744570833245,12.27619,1629.2,1629.1,6.16]